bitfinex/quotes_BTCUSD_20250711
["timestamp","ask_amount","ask_price","bid_price","bid_amount"]
[1752211985285,0.0170086,117580.0,117570.0,0.36238214]
[1752211985406,0.00850419,117580.0,117570.0,0.36238214]
[1752211985609,0.00850419,117580.0,117570.0,0.70238214]
[1752211985610,0.01700853,117580.0,117570.0,0.70238214]
[1752211985870,0.04252234,117580.0,117570.0,0.70238214]
[1752211986169,0.50551303,117590.0,117580.0,0.0746001]
[1752211986170,0.34393383,117590.0,117580.0,0.0746001]
[1752211986418,0.01700867,117580.0,117570.0,0.63278204]
[1752211986642,0.0170086,117580.0,117570.0,0.70738214]
[1752211986842,0.02651315,117580.0,117570.0,0.64178204]
[1752211986956,0.00850419,117580.0,117570.0,0.70738214]
[1752211987163,0.11094316,117580.0,117570.0,0.53842214]
[1752211987377,0.28104076,117580.0,117570.0,0.0548]
[1752211987790,0.27930374,117580.0,117570.0,0.1294001]
[1752211988214,0.11094337,117580.0,117570.0,0.0548]
[1752211988570,0.10243897,117580.0,117570.0,0.0548]
[1752211988774,0.11194367,117580.0,117570.0,0.1364001]
[1752211988920,0.12044771,117580.0,117570.0,0.1364001]
[1752211989274,0.12795255,117580.0,117570.0,0.1294001]
[1752211989581,0.11944771,117580.0,117570.0,0.1314001]
[1752211990173,0.11094301,117580.0,117570.0,0.0518]
[1752211990348,0.11944764,117580.0,117570.0,0.1264001]
[1752211990549,0.12795241,117580.0,117570.0,0.1264001]
[1752211991089,0.11094345,117580.0,117570.0,0.1264001]
[1752211991493,0.11094345,117580.0,117570.0,0.1274001]
[1752211991700,0.10243853,117580.0,117570.0,0.0528]
[1752211992022,0.2585039,117590.0,117580.0,0.0746001]
[1752211992140,0.5370451,117590.0,117580.0,0.0746001]
[1752211992342,0.5285412,117590.0,117580.0,0.0746001]
[1752211992543,0.52003723,117590.0,117580.0,0.0746001]
[1752211992782,0.36094142,117590.0,117580.0,0.0746001]
[1752211992997,0.53102391,117590.0,117580.0,0.0746001]
[1752211993400,0.36094142,117590.0,117580.0,0.0746001]
[1752211993643,0.53952803,117590.0,117580.0,0.0756001]
[1752211993818,0.75908179,117590.0,117580.0,0.001]
[1752211994047,0.75908179,117590.0,117580.0,0.0756001]
[1752211994255,0.75908179,117590.0,117580.0,0.001]
[1752211994427,0.75908179,117590.0,117580.0,0.0756001]
[1752211994814,0.75908179,117590.0,117580.0,0.001]
[1752211995007,0.68928059,117590.0,117580.0,0.001]
[1752211995206,0.5191981,117590.0,117580.0,0.0756001]
[1752211995484,0.52770127,117590.0,117580.0,0.0756001]
[1752211996298,0.6977842,117590.0,117580.0,0.0756001]
[1752211996497,0.6977842,117590.0,117580.0,0.001]
[1752211996690,0.70628832,117590.0,117580.0,0.0756001]
[1752211997323,0.5277012,117590.0,117580.0,0.0756001]
[1752211997523,0.53620525,117590.0,117580.0,0.001]
[1752211997734,0.6977842,117590.0,117580.0,0.0756001]
[1752211998146,0.77367037,117590.0,117580.0,0.001]
[1752211998585,0.68824044,117590.0,117580.0,0.0756001]
[1752211998854,0.51815723,117590.0,117580.0,0.001]
[1752211999274,0.53516518,117590.0,117580.0,0.0756001]
[1752211999457,0.70508767,117590.0,117580.0,0.0756001]
[1752211999712,0.68808037,117590.0,117580.0,0.0756001]
[1752211999958,0.51799752,117590.0,117580.0,0.0756001]
[1752212000179,0.25,117610.0,117600.0,0.65377112]
[1752212000406,0.25,117640.0,117630.0,0.1544001]
[1752212000786,0.35242985,117640.0,117630.0,0.1544001]
[1752212001018,0.66654993,117640.0,117630.0,0.1544001]
[1752212001931,0.66654993,117640.0,117630.0,0.1564001]
[1752212002145,0.33112,117640.0,117630.0,0.48906366]
[1752212002376,0.33112,117640.0,117630.0,0.1873001]
[1752212003039,0.33112,117640.0,117630.0,0.1564001]
[1752212003690,0.33961993,117640.0,117630.0,0.1574001]
[1752212003902,0.33112,117640.0,117630.0,0.1574001]
[1752212005035,0.33961985,117640.0,117630.0,0.1574001]
[1752212005477,0.35661985,117640.0,117630.0,0.1574001]
[1752212005924,0.35661985,117640.0,117630.0,0.1274001]
[1752212006151,0.34811978,117640.0,117630.0,0.1274001]
[1752212006360,0.33112,117640.0,117630.0,0.1274001]
[1752212006833,0.33961985,117640.0,117630.0,0.1274001]
[1752212007045,0.35661999,117640.0,117630.0,0.1274001]
[1752212007216,0.69204992,117640.0,117630.0,0.0776001]
[1752212007440,0.69204992,117640.0,117630.0,0.1274001]
[1752212007441,0.70055014,117640.0,117630.0,0.1274001]
[1752212008244,0.69204992,117640.0,117630.0,0.1274001]
[1752212008413,0.70905043,117640.0,117630.0,0.1274001]
[1752212009264,0.69204992,117640.0,117630.0,0.1274001]
[1752212009468,0.69205,117640.0,117630.0,0.1274001]
[1752212009642,0.68354978,117640.0,117630.0,0.1274001]
[1752212010259,0.69205,117640.0,117630.0,0.1274001]
[1752212010501,0.67504978,117640.0,117630.0,0.1274001]
[1752212010648,0.68354985,117640.0,117630.0,0.1274001]
[1752212011287,0.68354978,117640.0,117630.0,0.1274001]
[1752212012217,0.69204992,117640.0,117630.0,0.1274001]
[1752212012404,0.68354978,117640.0,117630.0,0.1274001]
[1752212013032,0.67504978,117640.0,117630.0,0.1274001]
[1752212013610,0.67504993,117640.0,117630.0,0.1274001]
[1752212013857,0.67504993,117640.0,117630.0,0.1273001]
[1752212014031,0.67504986,117640.0,117630.0,0.1273001]
[1752212014398,0.70055043,117640.0,117630.0,0.0527]
[1752212014592,0.70055043,117640.0,117630.0,0.1273001]
[1752212015028,0.70055043,117640.0,117630.0,0.0527]
[1752212015146,0.70905094,117640.0,117630.0,0.0527]
[1752212015352,0.70055043,117640.0,117630.0,0.1273001]
[1752212015768,0.70055036,117640.0,117630.0,0.1273001]
[1752212016014,0.70055079,117640.0,117630.0,0.1273001]
[1752212016569,0.70055079,117640.0,117630.0,0.0775001]
[1752212016776,1.34175673,117640.0,117630.0,0.0029]
[1752212016976,0.92248911,117640.0,117630.0,0.0029]
[1752212017421,1.37375673,117640.0,117630.0,0.0029]
[1752212017808,0.02071594,117640.0,117630.0,0.85926315]
[1752212018008,0.04918722,117730.0,117710.0,0.0746001]
[1752212018207,0.0406935,117730.0,117710.0,0.1244001]
[1752212018423,0.25,117720.0,117710.0,0.1244001]
[1752212018630,0.0002,117730.0,117720.0,0.72437808]
[1752212018834,0.0002,117730.0,117720.0,1.20281748]
[1752212019036,0.0002,117730.0,117720.0,1.21838304]
[1752212019214,0.01923547,117750.0,117740.0,0.35144489]
[1752212019442,0.01923547,117750.0,117740.0,0.97217845]
[1752212019647,0.01923547,117750.0,117740.0,1.00507859]
[1752212019841,0.01923547,117750.0,117740.0,0.52091098]
[1752212020046,0.01923547,117750.0,117740.0,0.53789676]
[1752212020266,0.01923547,117750.0,117740.0,1.10749431]
[1752212020490,0.01073808,117750.0,117740.0,1.10749431]
[1752212020691,0.01073808,117750.0,117740.0,1.44749431]
[1752212020895,0.00324069,117750.0,117740.0,1.45249431]
[1752212021099,0.00324069,117750.0,117740.0,1.13779224]
[1752212021307,0.00326908,117770.0,117760.0,0.1569001]
[1752212021515,0.00326908,117770.0,117760.0,0.33522889]
[1752212021723,0.00326908,117770.0,117760.0,0.1569001]
[1752212021973,0.00326908,117770.0,117760.0,0.1244001]
[1752212022127,0.10568025,117770.0,117750.0,0.0498]
[1752212022352,0.09392127,117760.0,117750.0,0.0498]
[1752212022554,0.10241275,117760.0,117750.0,0.0498]
[1752212022757,0.11939615,117760.0,117750.0,0.1244001]
[1752212022988,0.11090431,117760.0,117750.0,0.1244001]
[1752212023197,0.11939615,117760.0,117750.0,0.1244001]
[1752212023400,0.11090474,117760.0,117750.0,0.1244001]
[1752212023612,0.186836,117750.0,117740.0,0.1244001]
[1752212023823,0.59762593,117750.0,117740.0,0.0746001]
[1752212024060,0.59762593,117750.0,117720.0,0.1244001]
[1752212024061,0.016987,117730.0,117720.0,0.1244001]
[1752212024282,0.02548065,117730.0,117720.0,0.1244001]
[1752212024538,0.01698693,117730.0,117720.0,0.1244001]
[1752212024740,0.43571108,117730.0,117720.0,0.0498]
[1752212024953,0.58333264,117740.0,117720.0,0.0498]
[1752212025158,0.58333264,117740.0,117730.0,0.0746001]
[1752212025159,0.69424156,117740.0,117730.0,0.0746001]
[1752212025364,0.00849415,117720.0,117700.0,0.06902204]
[1752212025565,0.51382038,117720.0,117710.0,0.0746001]
[1752212025802,0.35241874,117720.0,117710.0,0.1244001]
[1752212026001,0.08542993,117720.0,117710.0,0.1244001]
[1752212026210,0.25,117730.0,117720.0,0.1244001]
[1752212026384,0.2754761,117750.0,117740.0,0.0746001]
[1752212026609,0.36090603,117750.0,117740.0,0.0746001]
[1752212026810,0.49794993,117750.0,117740.0,0.1244001]
[1752212027157,0.11090647,117750.0,117740.0,0.1244001]
[1752212027271,0.11939903,117750.0,117740.0,0.1244001]
[1752212027471,0.11090647,117750.0,117740.0,0.1244001]
[1752212027718,0.11190647,117750.0,117740.0,0.1244001]
[1752212027907,0.10341412,117750.0,117740.0,0.1244001]
[1752212028107,0.001,117750.0,117740.0,0.62186821]
[1752212028369,0.001,117750.0,117740.0,0.17060059]
[1752212028694,0.001,117750.0,117740.0,0.25888049]
[1752212028948,0.001,117750.0,117740.0,0.33348059]
[1752212029120,0.00326908,117770.0,117760.0,0.1244001]
[1752212029322,0.08869901,117770.0,117760.0,0.1244001]
[1752212029529,0.09718948,117770.0,117760.0,0.1244001]
[1752212029957,0.11417086,117770.0,117760.0,0.1244001]
[1752212030161,0.28399418,117770.0,117760.0,0.1244001]
[1752212030362,0.28399418,117770.0,117760.0,0.1254001]
[1752212030604,0.1056806,117770.0,117760.0,0.1254001]
[1752212030807,0.27550335,117770.0,117760.0,0.001]
[1752212031038,0.27550335,117770.0,117760.0,0.0756001]
[1752212031441,0.27550335,117770.0,117760.0,0.0766001]
[1752212031878,0.08869901,117770.0,117760.0,0.002]
[1752212032070,0.00326908,117770.0,117760.0,0.3197201]
[1752212032396,0.0117597,117770.0,117760.0,0.1264001]
[1752212032682,0.0287413,117770.0,117760.0,0.1264001]
[1752212032825,0.02025046,117770.0,117760.0,0.2891601]
[1752212033034,0.0117597,117770.0,117760.0,0.2891601]
[1752212033847,0.00326908,117770.0,117760.0,0.2891601]
[1752212034685,0.01175963,117770.0,117760.0,0.2891601]
[1752212034884,0.01175963,117770.0,117760.0,0.1264001]
[1752212035121,0.02025032,117770.0,117760.0,0.1264001]
[1752212035276,0.27025068,117770.0,117760.0,0.1264001]
[1752212035473,0.2787418,117770.0,117760.0,0.1264001]
[1752212035727,0.53399426,117770.0,117760.0,0.2888801]
[1752212035894,0.60244259,117770.0,117760.0,0.0766001]
[1752212036094,0.51701266,117770.0,117760.0,0.2390001]
[1752212036245,0.3556809,117770.0,117760.0,0.2390001]
[1752212036445,0.36417159,117770.0,117760.0,0.2390001]
[1752212036650,0.34718948,117770.0,117760.0,0.2888001]
[1752212036868,0.36417079,117770.0,117760.0,0.2888001]
[1752212037089,0.34718948,117770.0,117760.0,0.2888001]
[1752212037262,0.33869901,117770.0,117760.0,0.2888001]
[1752212037478,0.25326908,117770.0,117760.0,0.2888001]
[1752212037883,0.26175955,117770.0,117760.0,0.2888001]
[1752212038150,0.25326908,117770.0,117760.0,0.2888001]
[1752212038355,0.00326908,117770.0,117760.0,0.2888001]
[1752212039260,0.0005,117780.0,117770.0,0.5292001]
[1752212039473,0.5,117800.0,117780.0,0.34]
[1752212039668,0.5,117800.0,117790.0,0.1567001]
[1752212039875,0.5,117800.0,117790.0,0.3189801]
[1752212040032,0.4995,117800.0,117790.0,0.3189801]
[1752212041665,1.48190268,117800.0,117790.0,0.1244001]
[1752212041870,0.1867727,117790.0,117780.0,0.0498]
[1752212042091,0.01697828,117790.0,117780.0,0.21288]
[1752212042296,0.499,117800.0,117790.0,0.1244001]
[1752212042583,0.499,117800.0,117790.0,0.15882252]
[1752212042993,0.50748831,117800.0,117790.0,0.1567001]
[1752212043210,0.50748831,117800.0,117790.0,0.0821]
[1752212043540,0.499,117800.0,117790.0,0.1567001]
[1752212043744,0.499,117800.0,117790.0,0.0821]
[1752212043948,0.50748838,117800.0,117790.0,0.0821]
[1752212044103,0.499,117800.0,117790.0,0.1244001]
[1752212044509,0.499,117800.0,117790.0,0.15872252]
[1752212044746,0.499,117800.0,117790.0,0.1566001]
[1752212045207,0.499,117800.0,117790.0,0.1576001]
[1752212045561,0.499,117800.0,117790.0,0.1566001]
[1752212045957,0.499,117800.0,117790.0,0.32851622]
[1752212046162,0.499,117800.0,117790.0,0.50708978]
[1752212046392,0.19051443,117800.0,117790.0,1.44727729]
[1752212046613,0.19051443,117800.0,117790.0,0.98656152]
[1752212046765,0.18202939,117800.0,117790.0,0.98656152]
[1752212046966,0.18202939,117800.0,117790.0,1.27899729]
[1752212047215,0.1438467,117800.0,117790.0,1.00126237]
[1752212047470,0.1438467,117800.0,117790.0,0.99277319]
[1752212047694,0.13536166,117800.0,117790.0,1.08726223]
[1752212047916,0.13536166,117800.0,117790.0,1.40368896]
[1752212048140,0.12637662,117800.0,117790.0,1.45592672]
[1752212048366,0.11789158,117800.0,117790.0,1.25217548]
[1752212048614,0.11789158,117800.0,117790.0,0.78389003]
[1752212048818,0.11889158,117800.0,117790.0,0.79089003]
[1752212049068,0.11040654,117800.0,117790.0,1.13594971]
[1752212049276,0.11040654,117800.0,117790.0,1.12746003]
[1752212049470,0.10940654,117800.0,117790.0,0.92660003]
[1752212049705,0.10940654,117800.0,117790.0,1.02027993]
[1752212049922,0.10940654,117800.0,117790.0,1.09488003]
[1752212050096,0.10940654,117800.0,117790.0,0.92660003]
[1752212050338,0.10940654,117800.0,117790.0,1.02007993]
[1752212050473,0.10940654,117800.0,117790.0,0.84699993]
[1752212050815,0.10940654,117800.0,117790.0,1.01511993]
[1752212050980,0.10940654,117800.0,117790.0,0.92160003]
[1752212051178,0.1004215,117800.0,117790.0,1.01999993]
[1752212051375,0.1004215,117800.0,117790.0,1.12482003]
[1752212051657,0.1004215,117800.0,117790.0,0.95690003]
[1752212051861,0.1004215,117800.0,117790.0,1.09852003]
[1752212052065,0.1004215,117800.0,117790.0,1.14148334]
[1752212052269,0.09193646,117800.0,117790.0,1.77868865]
[1752212052609,0.08345227,117800.0,117790.0,1.77868865]
[1752212052804,0.08345227,117800.0,117790.0,1.78717804]
[1752212053006,0.08345227,117800.0,117790.0,1.24337278]
[1752212053193,0.08345227,117800.0,117790.0,1.79566743]
[1752212053639,0.08345227,117800.0,117790.0,1.80415668]
[1752212053835,0.08345227,117800.0,117790.0,1.32646205]
[1752212054004,0.08345227,117800.0,117790.0,1.72106711]
[1752212054194,0.08345227,117800.0,117790.0,1.3349513]
[1752212054195,0.07496808,117800.0,117790.0,1.3349513]
[1752212054401,0.07496808,117800.0,117790.0,1.78717789]
[1752212054736,0.06648389,117800.0,117790.0,1.79566707]
[1752212055147,0.0579997,117800.0,117790.0,1.13120003]
[1752212055318,0.0579997,117800.0,117790.0,0.97168971]
[1752212055525,0.0579997,117800.0,117790.0,1.09968003]
[1752212055722,0.0579997,117800.0,117790.0,1.10816957]
[1752212055922,0.0579997,117800.0,117790.0,1.09968003]
[1752212056132,0.0579997,117800.0,117790.0,1.10816971]
[1752212056344,0.0579997,117800.0,117790.0,1.09968003]
[1752212056585,0.0579997,117800.0,117790.0,1.09952003]
[1752212056785,0.0579997,117800.0,117790.0,1.78629768]
[1752212056786,0.04951551,117800.0,117790.0,1.78629768]
[1752212056965,0.04951551,117800.0,117790.0,1.32558191]
[1752212057167,0.04951551,117800.0,117790.0,1.78629768]
[1752212057168,0.00638898,117800.0,117790.0,1.78629768]
[1752212057369,0.01,117820.0,117810.0,0.5258001]
[1752212057703,0.00151581,117820.0,117810.0,1.49283699]
[1752212057903,0.0002,117850.0,117840.0,0.0746001]
[1752212058134,0.0002,117850.0,117840.0,0.4127201]
[1752212058337,0.0002,117850.0,117840.0,0.4625201]
[1752212058487,0.0002,117850.0,117840.0,0.4956201]
[1752212058700,0.0002,117850.0,117840.0,0.92105003]
[1752212058910,0.0002,117850.0,117840.0,0.84644993]
[1752212059088,0.0002,117850.0,117840.0,1.09925769]
[1752212059292,0.01,117860.0,117850.0,0.5301001]
[1752212059479,0.01,117860.0,117850.0,0.61553003]
[1752212059676,0.00151756,117860.0,117850.0,1.14161771]
[1752212059978,0.00151756,117860.0,117850.0,1.15114745]
[1752212060165,9.05991994,117880.0,117850.0,1.33782462]
[1752212060367,9.05991994,117880.0,117870.0,0.28457088]
[1752212060572,9.05991994,117880.0,117870.0,0.24003003]
[1752212060719,9.05991994,117880.0,117870.0,0.74927003]
[1752212061058,9.05991994,117880.0,117870.0,0.74923003]
[1752212061628,9.05991994,117880.0,117870.0,0.71935003]
[1752212061894,9.05983752,117880.0,117870.0,0.71935003]
[1752212062096,9.06083752,117880.0,117870.0,0.54919003]
[1752212062488,9.06932014,117880.0,117870.0,0.4637601]
[1752212062722,9.06932007,117880.0,117870.0,0.4637601]
[1752212062921,9.06083752,117880.0,117870.0,0.4667601]
[1752212063122,9.06083752,117880.0,117870.0,0.6367601]
[1752212063703,9.06083752,117880.0,117870.0,0.6368001]
[1752212064572,9.06058752,117880.0,117870.0,0.6370801]
[1752212065186,9.06807014,117880.0,117870.0,0.6371201]
[1752212065401,9.06807021,117880.0,117870.0,0.4667601]
[1752212065602,9.10655305,117880.0,117870.0,0.39516]
[1752212065846,9.29318315,117880.0,117870.0,0.39216]
[1752212066053,9.27621762,117880.0,117870.0,0.39216]
[1752212066202,9.27621762,117880.0,117870.0,0.39616]
[1752212066650,9.56726933,117880.0,117870.0,0.39616]
[1752212066795,9.64732173,117880.0,117870.0,0.38916]
[1752212067157,9.47765723,117880.0,117870.0,0.40865071]
[1752212067360,9.64785374,117880.0,117870.0,0.40865071]
[1752212067786,9.25978403,117880.0,117870.0,0.40865071]
[1752212067984,9.63088814,117880.0,117870.0,0.48325064]
[1752212068148,9.63088814,117880.0,117870.0,0.40865054]
[1752212068526,9.63088814,117880.0,117870.0,0.48325064]
[1752212068747,9.08163684,117880.0,117870.0,0.48325064]
[1752212068949,9.47818925,117880.0,117870.0,0.40865054]
[1752212069233,9.47818925,117880.0,117870.0,0.48325064]
[1752212069440,9.88937104,117880.0,117870.0,0.40865054]
[1752212069641,9.63419686,117880.0,117870.0,0.34138932]
[1752212069817,10.00530097,117880.0,117870.0,0.33108042]
[1752212070002,10.00530097,117880.0,117870.0,0.29240741]
[1752212070881,9.06011939,117880.0,117870.0,0.41680751]
[1752212071084,9.6093709,117880.0,117870.0,0.41680751]
[1752212071353,9.96791799,117880.0,117870.0,0.41680751]
[1752212071559,10.00456936,117880.0,117870.0,0.36600751]
[1752212071711,9.96791799,117880.0,117870.0,0.36600751]
[1752212072032,10.00161799,117880.0,117870.0,0.25351991]
[1752212072525,10.00161799,117880.0,117870.0,0.32512001]
[1752212072786,10.01615884,117880.0,117870.0,0.25051991]
[1752212073045,10.04546869,117880.0,117870.0,0.25051991]
[1752212073293,10.04546869,117880.0,117870.0,0.32612001]
[1752212073294,10.17125799,117880.0,117870.0,0.32612001]
[1752212073536,10.17125799,117880.0,117870.0,0.25151991]
[1752212073788,10.17125799,117880.0,117870.0,0.25154519]
[1752212074039,9.80015388,117880.0,117870.0,0.25154519]
[1752212074297,10.17125799,117880.0,117870.0,0.32614529]
[1752212075041,10.20015388,117880.0,117870.0,0.32614529]
[1752212075248,10.57125799,117880.0,117870.0,0.32614529]
[1752212075537,10.20015388,117880.0,117870.0,0.32614529]
[1752212075778,10.22347088,117880.0,117870.0,0.32614529]
[1752212076033,10.39598245,117880.0,117870.0,0.32614529]
[1752212076243,9.84611514,117880.0,117870.0,0.32614529]
[1752212076454,10.39570245,117880.0,117870.0,0.32614509]
[1752212076626,10.18577978,117880.0,117870.0,0.32614509]
[1752212076806,9.80025343,117880.0,117870.0,0.32614509]
[1752212077123,9.56734954,117880.0,117870.0,0.37609634]
[1752212077358,9.584315,117880.0,117870.0,0.37609634]
[1752212077575,10.15421543,117880.0,117870.0,0.37609634]
[1752212077809,10.03134975,117880.0,117870.0,0.32629634]
[1752212078025,10.18034112,117880.0,117870.0,0.32629634]
[1752212079145,10.19488197,117880.0,117870.0,0.15052525]
[1752212079352,10.53438197,117880.0,117870.0,0.15052525]
[1752212079501,10.53438197,117880.0,117830.0,0.1244001]
[1752212079502,0.55779741,117840.0,117830.0,0.1244001]
[1752212079705,0.84526734,117840.0,117830.0,0.0498]
[1752212080316,0.84526734,117840.0,117830.0,0.1244001]
[1752212080550,0.45852271,117830.0,117820.0,0.1244001]
[1752212080689,0.00848709,117820.0,117810.0,0.0498]
[1752212080888,0.71502026,117830.0,117810.0,0.1244001]
[1752212081146,0.34391608,117830.0,117820.0,0.19342214]
[1752212081343,0.70823167,117830.0,117820.0,0.19342214]
[1752212081565,1.09566334,117830.0,117820.0,0.14362214]
[1752212081724,0.72455923,117830.0,117820.0,0.14362214]
[1752212081927,1.09566334,117830.0,117820.0,0.14362214]
[1752212082100,0.42820758,117840.0,117830.0,0.1244001]
[1752212082294,1.05378162,117840.0,117830.0,0.1244001]
[1752212082525,0.55144115,117840.0,117830.0,0.1244001]
[1752212082953,0.72964924,117840.0,117830.0,0.1244001]
[1752212083156,0.72116352,117840.0,117830.0,0.1244001]
[1752212083330,0.55144158,117840.0,117830.0,0.1244001]
[1752212083528,0.55144115,117840.0,117830.0,0.1244001]
[1752212083729,0.47964873,117840.0,117830.0,0.1244001]
[1752212083932,0.47116323,117840.0,117830.0,0.1244001]
[1752212084251,1.18645811,117840.0,117830.0,0.0746001]
[1752212084456,1.18745811,117840.0,117830.0,0.0746001]
[1752212084644,0.816354,117840.0,117830.0,0.0746001]
[1752212084824,1.18745811,117840.0,117830.0,0.0746001]
[1752212085025,0.74677751,117840.0,117830.0,0.0746001]
[1752212085243,0.56064766,117840.0,117830.0,0.0746001]
[1752212085472,0.73036931,117840.0,117830.0,0.0746001]
[1752212085681,0.72188359,117840.0,117830.0,0.0746001]
[1752212085899,0.53044708,117840.0,117830.0,0.0746001]
[1752212086111,0.53044694,117840.0,117830.0,0.0746001]
[1752212086321,0.33642993,117840.0,117830.0,0.1244001]
[1752212086538,0.001,117840.0,117830.0,0.49550421]
[1752212086783,0.001,117840.0,117830.0,0.3227401]
[1752212087011,0.001,117840.0,117830.0,0.69384421]
[1752212087670,0.4351282,117860.0,117830.0,0.69384421]
[1752212087908,0.52055813,117860.0,117850.0,0.0746001]
[1752212088115,0.52904255,117860.0,117850.0,0.0746001]
[1752212088320,0.52031813,117860.0,117850.0,0.0746001]
[1752212088606,0.53728697,117860.0,117850.0,0.0746001]
[1752212088746,0.46766274,117860.0,117850.0,0.0746001]
[1752212088949,0.01697057,117850.0,117840.0,0.1244001]
[1752212089149,0.28907782,117850.0,117840.0,0.1244001]
[1752212089487,0.28907782,117850.0,117840.0,0.0498]
[1752212089488,0.34608199,117850.0,117840.0,0.0498]
[1752212089620,0.7171861,117850.0,117840.0,0.0746001]
[1752212089826,0.34608199,117850.0,117840.0,0.0746001]
[1752212090254,0.28763718,117850.0,117840.0,0.0746001]
[1752212090668,0.69164129,117850.0,117840.0,0.0746001]
[1752212090889,0.32053718,117850.0,117840.0,0.0746001]
[1752212091094,0.69164129,117850.0,117840.0,0.0746001]
[1752212091753,0.69164129,117850.0,117840.0,0.002]
[1752212091972,0.77707122,117850.0,117840.0,0.002]
[1752212092178,0.42050796,117850.0,117840.0,0.002]
[1752212092391,0.79161207,117850.0,117840.0,0.002]
[1752212092801,0.45212165,117840.0,117830.0,0.0746001]
[1752212093014,1.07617569,117840.0,117830.0,0.0746001]
[1752212093220,0.26697424,117820.0,117810.0,0.1244001]
[1752212093421,0.42592701,117820.0,117810.0,0.0498]
[1752212093592,0.25,117820.0,117810.0,0.1244001]
[1752212094451,0.25,117820.0,117810.0,0.1264001]
[1752212095780,0.04243263,117830.0,117820.0,0.0746001]
[1752212095926,0.11937583,117830.0,117820.0,0.0746001]
[1752212096124,0.10240245,117830.0,117820.0,0.0746001]
[1752212096379,0.11088896,117830.0,117820.0,0.0746001]
[1752212096946,0.10240245,117830.0,117820.0,0.0766001]
[1752212097166,0.09391608,117830.0,117820.0,0.0766001]
[1752212097365,0.11088903,117830.0,117820.0,0.0766001]
[1752212097574,0.11937576,117830.0,117820.0,0.0766001]
[1752212097778,0.11088903,117830.0,117820.0,0.0766001]
[1752212097987,0.28911182,117830.0,117820.0,0.0766001]
[1752212098189,0.5306261,117830.0,117820.0,0.1264001]
[1752212098365,0.55393952,117830.0,117820.0,0.0766001]
[1752212098573,0.63936945,117830.0,117820.0,0.002]
[1752212098748,0.55393952,117830.0,117820.0,0.0766001]
[1752212099279,0.55393952,117830.0,117820.0,0.002]
[1752212099490,0.55393952,117830.0,117820.0,0.0766001]
[1752212099911,0.52213851,117830.0,117820.0,0.1264001]
[1752212100114,0.50146993,117830.0,117820.0,0.1264001]
[1752212100311,0.25,117830.0,117820.0,0.1264001]
[1752212100724,0.47090662,117830.0,117820.0,0.1264001]
[1752212100925,0.44519544,117830.0,117820.0,0.1264001]
[1752212101482,0.66158389,117870.0,117860.0,0.1576001]
[1752212101483,0.10424154,117870.0,117860.0,0.1576001]
[1752212101706,0.11272495,117870.0,117860.0,0.52870421]
[1752212101893,0.43608154,117870.0,117860.0,0.0498]
[1752212102084,0.44456488,117870.0,117860.0,0.1244001]
[1752212102291,0.43608154,117870.0,117860.0,0.1244001]
[1752212102498,0.461532,117870.0,117860.0,0.1244001]
[1752212102669,0.44456481,117870.0,117860.0,0.1244001]
[1752212103281,0.46153164,117870.0,117860.0,0.1244001]
[1752212103627,0.46153243,117870.0,117860.0,0.1264001]
[1752212104110,0.46153243,117870.0,117860.0,0.0518]
[1752212104285,0.46153186,117870.0,117860.0,0.1264001]
[1752212104487,0.47849934,117870.0,117860.0,0.1264001]
[1752212104661,0.63121103,117870.0,117860.0,0.1264001]
[1752212105005,0.46153258,117870.0,117860.0,0.0518]
[1752212105170,0.54696251,117870.0,117860.0,0.1264001]
[1752212105372,0.46153258,117870.0,117860.0,0.1264001]
[1752212105609,0.73147377,117870.0,117860.0,0.1264001]
[1752212106008,0.73147377,117870.0,117860.0,0.0518]
[1752212106212,0.73147377,117870.0,117860.0,0.1264001]
[1752212107045,1.10257788,117870.0,117860.0,0.002]
[1752212107250,0.8169037,117870.0,117860.0,0.002]
[1752212107472,1.18800781,117870.0,117860.0,0.0766001]
[1752212107676,1.10257788,117870.0,117860.0,0.0766001]
[1752212108251,0.52791532,117870.0,117860.0,0.0518]
[1752212108461,0.7060774,117870.0,117860.0,0.0518]
[1752212108683,0.7060774,117870.0,117860.0,0.1264001]
[1752212109108,0.69759377,117870.0,117860.0,0.1264001]
[1752212109324,0.74951713,117870.0,117860.0,0.1264001]
[1752212109533,0.69759377,117870.0,117860.0,0.1264001]
[1752212109977,1.06869788,117870.0,117860.0,0.0518]
[1752212110408,1.10189788,117870.0,117860.0,0.1264001]
[1752212110605,1.10189788,117870.0,117860.0,0.002]
[1752212111133,0.73079377,117870.0,117860.0,0.002]
[1752212111338,0.8162237,117870.0,117860.0,0.002]
[1752212111539,1.18732781,117870.0,117860.0,0.0766001]
[1752212111732,1.18732781,117870.0,117860.0,0.002]
[1752212112358,1.18732781,117870.0,117860.0,0.0766001]
[1752212112499,0.8474237,117870.0,117860.0,0.002]
[1752212112699,0.8474237,117870.0,117830.0,0.0746001]
[1752212112700,0.18669344,117840.0,117830.0,0.0746001]
[1752212113138,0.27212337,117840.0,117830.0,0.0746001]
[1752212113342,0.27212337,117840.0,117820.0,0.37892]
[1752212113343,0.2669731,117830.0,117820.0,0.37892]
[1752212113549,0.36937576,117830.0,117820.0,0.4535201]
[1752212113830,0.35240288,117830.0,117820.0,0.37892]
[1752212114053,0.37786234,117830.0,117820.0,0.4535201]
[1752212114256,0.53062573,117830.0,117820.0,0.37892]
[1752212114685,0.52213922,117830.0,117820.0,0.1244001]
[1752212114896,0.17823798,117820.0,117810.0,0.0498]
[1752212115105,0.19522922,117810.0,117800.0,0.1244001]
[1752212115313,0.18674098,117810.0,117800.0,0.0498]
[1752212115549,0.00848781,117810.0,117800.0,0.1244001]
[1752212115749,0.03395152,117810.0,117800.0,0.1244001]
[1752212115898,0.20371639,117810.0,117800.0,0.1244001]
[1752212116107,0.20371639,117810.0,117800.0,0.0498]
[1752212116302,0.02546335,117810.0,117800.0,0.1244001]
[1752212116504,0.26366776,117820.0,117810.0,0.0746001]
[1752212117074,0.61837757,117830.0,117820.0,0.1244001]
[1752212117277,0.33542993,117830.0,117820.0,0.1244001]
[1752212117475,0.81626657,117850.0,117840.0,0.0746001]
[1752212117668,0.17820758,117840.0,117830.0,0.0498]
[1752212117870,0.64322748,117840.0,117830.0,0.1244001]
[1752212118345,0.25,117830.0,117820.0,0.082]
[1752212118634,0.3693759,117830.0,117820.0,0.1244001]
[1752212118835,0.3693759,117830.0,117820.0,0.0498]
[1752212118974,0.53911196,117830.0,117820.0,0.1244001]
[1752212119178,0.53911196,117830.0,117820.0,0.0498]
[1752212119387,0.54011196,117830.0,117820.0,0.1244001]
[1752212119997,0.36188917,117830.0,117820.0,0.1244001]
[1752212120398,0.37037568,117830.0,117820.0,0.1244001]
[1752212120644,0.54011218,117830.0,117820.0,0.2886801]
[1752212121043,0.37037612,117830.0,117820.0,0.2886801]
[1752212121334,0.36188939,117830.0,117820.0,0.2886801]